[Event "FIDE World Cup G12-B 2024"]
[Site "Batumi"]
[Date "2024.06.29"]
[Round "7.1"]
[White "Bassari, Senem Gul"]
[Black "Gunawardhana, Devindya Oshini"]
[Result "0-1"]
[ECO "C60"]
[WhiteElo "1768"]
[BlackElo "1980"]
[Annotator "NA RC"]
[PlyCount "118"]
[EventDate "2024.06.23"]
[EventType "swiss"]
[EventCountry "GEO"]
[SourceTitle "playchess.com"]
[Source "ChessBase"]
[SourceQuality "1"]
[TimeControl "5400+30"]

1. e4 {[%emt 0:00:08]} e5 {[%emt 0:00:11]} 2. Nf3 {[%emt 0:00:09]} Nc6 {[%emt 0:00:06]} 3. Bb5 {[%emt 0:00:06]} a6 {[%emt 0:00:05]} 4. Ba4 {[%emt 0:00:04]} g6 {[%emt 0:00:09]} 5. O-O {[%emt 0:00:44]} Bg7 {[%emt 0:00:35]} 6. c3 {[%emt 0:00:25]} Nge7 {[%emt 0:00:46]} 7. d4 {[%emt 0:00:39]} exd4 {[%emt 0:00:50]} 8. cxd4 {[%emt 0:00:21]} b5 {[%emt 0:00:13]} 9. Bc2 {[%emt 0:02:21]} d5 {[%emt 0:15:47]} 10. e5 {[%emt 0:09:46]} Bg4 {[%emt 0:01:34]} 11. Be3 {[%emt 0:00:43]} f6 {[%emt 0:10:55]} 12. exf6 {[%emt 0:14:49]} Bxf6 {[%emt 0:00:08]} 13. h3 {[%emt 0:12:09]} Bf5 {[%emt 1:05:41]} ({Black should play} 13... Bxf3 $11 14. Qxf3 Bxd4) 14. Nbd2 {[%emt 0:07:48]} O-O $16 {[%emt 0:00:00]} 15. Nb3 {[%emt 0:01:50]} Qc8 {[%emt 0:00:00]} 16. Kh2 {[%emt 0:08:33]} Nd8 {[%emt 0:00:00]} 17. Nc5 {[%emt 0:02:08]} Ne6 {[%emt 0:00:00]} 18. Nd3 {[%emt 0:04:14]} Be4 {[%emt 0:00:00]} 19. Nde5 {[%emt 0:04:32]} Nf5 {[%emt 0:00:00]} 20. Rc1 {[%emt 0:08:24]} Qe8 {[%emt 0:00:00]} 21. Ng4 {[%emt 0:06:28]} Bg7 {[%emt 0:00:00]} 22. Nge5 {[%emt 0:05:18]} Nexd4 {[%emt 0:03:15]} 23. Bxd4 {[%emt 0:08:48]} Nxd4 {[%emt 0:00:05]} 24. Qxd4 {[%emt 0:00:53]} Bxf3 {[%emt 0:01:00]} 25. Rfe1 {[%emt 0:01:00]} Be4 {[%emt 0:00:22]} 26. f4 {[%emt 0:00:35]} c5 {[%emt 0:00:40]} 27. Qc3 {[%emt 0:00:28]} Rxf4 {[%emt 0:00:32]} 28. Bxe4 {[%emt 0:00:22]} Rxe4 {[%emt 0:00:45]} 29. Rxe4 {[%emt 0:00:40]} dxe4 {[%emt 0:00:02]} 30. Qb3+ {[%emt 0:00:27]} c4 {[%emt 0:00:01]} 31. Nxc4 {[%emt 0:00:06]} bxc4 {[%emt 0:00:01]} 32. Qxc4+ {[%emt 0:00:08]} Kh8 {[%emt 0:00:04]} 33. Re1 {[%emt 0:00:09]} Qe5+ {[%emt 0:00:04]} 34. Kh1 {[%emt 0:00:06]} Re8 {[%emt 0:01:07]} 35. Qxa6 {[%emt 0:00:02]} Qxb2 {[%emt 0:00:49]} 36. a4 {[%emt 0:00:56]} e3 {[%emt 0:00:19]} 37. Qc6 {[%emt 0:00:39]} Rf8 {[%emt 0:02:11]} 38. Qe4 {[%emt 0:00:41]} Qd4 {[%emt 0:00:33]} 39. Qe7 {[%emt 0:00:28]} Qxa4 {[%emt 0:00:24]} 40. Qxe3 {[%emt 0:00:25]} Qc4 {[%emt 0:00:24]} 41. Re2 {[%emt 0:00:49]} Bd4 {[%emt 0:00:44]} 42. Qe4 {[%emt 0:00:57]} Rf1+ {[%emt 0:00:20]} 43. Kh2 {[%emt 0:00:01]} Bg1+ {[%emt 0:00:01]} 44. Kg3 {[%emt 0:00:37]} Qxe4 {[%emt 0:00:19]} 45. Rxe4 {[%emt 0:00:02]} Kg7 {[%emt 0:00:09]} 46. Kg4 {[%emt 0:00:27]} Bc5 {[%emt 0:00:40]} 47. h4 {[%emt 0:00:30]} h5+ {[%emt 0:00:31]} 48. Kh3 {[%emt 0:00:19]} Bd6 {[%emt 0:00:31]} 49. g3 {[%emt 0:01:14]} Rf3 {[%emt 0:00:06]} 50. Re6 {[%emt 0:00:32]} Rxg3+ {[%emt 0:00:23]} 51. Kh2 {[%emt 0:00:01]} Rd3+ {[%emt 0:00:05]} 52. Kg2 {[%emt 0:00:07]} Kf7 {[%emt 0:00:07]} 53. Re2 {[%emt 0:00:21]} Rd4 {[%emt 0:00:11]} 54. Kh3 {[%emt 0:00:06]} Be7 {[%emt 0:00:09]} 55. Kg2 {[%emt 0:00:10]} Rxh4 {[%emt 0:00:05]} 56. Rf2+ {[%emt 0:00:06]} Bf6 {[%emt 0:00:04]} 57. Kg3 {[%emt 0:00:05]} Ra4 {[%emt 0:00:08]} 58. Rc2 {[%emt 0:00:04]} g5 {[%emt 0:00:03]} 59. Rc7+ {[%emt 0:00:05]} Kg6 {[%emt 0:00:03]} 0-1

[Event "FIDE World Cup G12-B 2024"]
[Site "Batumi"]
[Date "2024.06.29"]
[Round "7.2"]
[White "Pratitee Bordoloi"]
[Black "Li, Sophie"]
[Result "1-0"]
[ECO "C74"]
[WhiteElo "1796"]
[BlackElo "1764"]
[Annotator "NA RC"]
[PlyCount "109"]
[EventDate "2024.06.23"]
[EventType "swiss"]
[EventCountry "GEO"]
[SourceTitle "playchess.com"]
[Source "ChessBase"]
[SourceQuality "1"]
[TimeControl "5400+30"]

1. e4 {[%emt 0:00:03]} e5 {[%emt 0:00:21]} 2. Nf3 {[%emt 0:00:06]} Nc6 {[%emt 0:00:13]} 3. Bb5 {[%emt 0:00:08]} a6 {[%emt 0:00:28]} 4. Ba4 {[%emt 0:00:05]} d6 {[%emt 0:00:47]} 5. c3 {[%emt 0:00:35]} f5 {[%emt 0:00:47]} 6. d3 {[%emt 0:00:33]} Nf6 {[%emt 0:01:02]} 7. Qe2 {[%emt 0:03:55]} b5 {[%emt 0:04:28]} 8. Bb3 {[%emt 0:00:40]} Na5 {[%emt 0:01:38]} 9. Bc2 {[%emt 0:00:18]} fxe4 {[%emt 0:01:41]} 10. dxe4 {[%emt 0:00:09]} Bb7 {[%emt 0:04:09]} 11. O-O {[%emt 0:01:59]} h6 {[%emt 0:02:43]} 12. Nh4 {[%emt 0:01:51]} g5 {[%emt 0:03:41]} 13. Ng6 {[%emt 0:03:46]} Rg8 {[%emt 0:01:31]} 14. Nxf8 {[%emt 0:00:22]} Rxf8 {[%emt 0:01:23]} 15. Nd2 {[%emt 0:01:57]} Qd7 {[%emt 0:02:49]} 16. a4 {[%emt 0:02:37]} c5 {[%emt 0:11:45]} 17. axb5 {[%emt 0:06:31]} axb5 {[%emt 0:00:16]} 18. Rd1 {[%emt 0:00:44]} c4 {[%emt 0:05:49]} 19. Nf1 {[%emt 0:03:27]} Nc6 {[%emt 0:05:38]} 20. Rxa8+ {[%emt 0:01:43]} Bxa8 {[%emt 0:00:06]} 21. Be3 {[%emt 0:02:52]} Ne7 {[%emt 0:05:02]} 22. Ng3 {[%emt 0:09:47]} d5 {[%emt 0:04:45]} 23. exd5 {[%emt 0:05:15]} Bxd5 {[%emt 0:01:06]} 24. Bc5 {[%emt 0:02:13]} Qe6 {[%emt 0:06:05]} 25. Bxe7 {[%emt 0:03:03]} Kxe7 {[%emt 0:06:32]} 26. Nf5+ {[%emt 0:02:14]} Kf7 {[%emt 0:01:04]} 27. Nxh6+ {[%emt 0:00:41]} Kg7 {[%emt 0:01:10]} 28. Nf5+ {[%emt 0:02:57]} Kf7 {[%emt 0:02:05]} 29. Qe3 {[%emt 0:01:06]} Rd8 {[%emt 0:03:56]} 30. Qxg5 {[%emt 0:01:41]} Kf8 {[%emt 0:01:50]} 31. Qg7+ {[%emt 0:01:56]} Ke8 {[%emt 0:00:05]} 32. Nd4 {[%emt 0:03:09]} Qe7 {[%emt 0:00:58]} 33. Bg6+ {[%emt 0:02:16]} Kd7 {[%emt 0:00:58]} 34. Bf5+ {[%emt 0:00:57]} Ke8 {[%emt 0:00:30]} 35. Bg6+ {[%emt 0:02:03]} Kd7 {[%emt 0:00:07]} 36. Qxe7+ {[%emt 0:00:12]} Kxe7 {[%emt 0:00:05]} 37. Nf5+ {[%emt 0:00:09]} Kf8 {[%emt 0:00:43]} 38. Ne3 {[%emt 0:00:12]} Ke7 {[%emt 0:00:55]} 39. Nxd5+ {[%emt 0:00:24]} Nxd5 {[%emt 0:00:31]} 40. Be4 {[%emt 0:01:12]} Nb6 {[%emt 0:00:52]} 41. Rxd8 {[%emt 0:00:43]} Kxd8 {[%emt 0:00:06]} 42. Bc6 {[%emt 0:01:37]} Na4 {[%emt 0:00:22]} 43. Bxb5 {[%emt 0:00:09]} Nxb2 {[%emt 0:00:04]} 44. Kf1 {[%emt 0:00:31]} Nd1 {[%emt 0:00:33]} 45. Bxc4 {[%emt 0:00:07]} Nxc3 {[%emt 0:00:06]} 46. Ke1 {[%emt 0:00:20]} Ke7 {[%emt 0:00:27]} 47. Kd2 {[%emt 0:00:22]} Ne4+ {[%emt 0:00:03]} 48. Ke3 {[%emt 0:00:10]} Nf6 {[%emt 0:00:13]} 49. f3 {[%emt 0:00:57]} Kd6 {[%emt 0:00:36]} 50. h4 {[%emt 0:00:43]} Nh5 {[%emt 0:01:06]} 51. g4 {[%emt 0:00:21]} Nf4 {[%emt 0:00:18]} 52. Ke4 {[%emt 0:00:38]} Ng2 {[%emt 0:00:45]} 53. h5 {[%emt 0:00:12]} Nf4 {[%emt 0:00:03]} 54. Kf5 {[%emt 0:00:34]} Ke7 {[%emt 0:00:21]} 55. Kxe5 {[%emt 0:00:14]} 1-0

[Event "FIDE World Cup G12-B 2024"]
[Site "Batumi"]
[Date "2024.06.29"]
[Round "7.3"]
[White "Amanzhol, Khanzada"]
[Black "Pavithra R V"]
[Result "0-1"]
[ECO "B50"]
[WhiteElo "1685"]
[BlackElo "1614"]
[Annotator "NA RC"]
[PlyCount "80"]
[EventDate "2024.06.23"]
[EventType "swiss"]
[EventCountry "GEO"]
[SourceTitle "playchess.com"]
[Source "ChessBase"]
[SourceQuality "1"]
[TimeControl "5400+30"]

1. e4 {[%emt 0:00:15]} c5 {[%emt 0:00:03]} 2. b3 {[%emt 0:00:12]} Nc6 {[%emt 1:31:27]} 3. Bb2 {[%emt 0:00:30]} d6 {[%emt 0:00:00]} 4. Nf3 {[%emt 0:01:20]} e5 {[%emt 0:00:00]} 5. Bb5 {[%emt 0:06:12]} Bd7 {[%emt 0:00:00]} 6. Qe2 {[%emt 0:00:38]} a6 {[%emt 0:00:00]} 7. Bxc6 {[%emt 0:00:09]} Bxc6 {[%emt 0:00:00]} 8. O-O {[%emt 0:04:14]} Ne7 {[%emt 0:00:00]} 9. c3 {[%emt 0:06:32]} Ng6 {[%emt 0:00:00]} 10. Qe3 {[%emt 0:04:41]} Be7 {[%emt 0:00:00]} 11. d4 {[%emt 0:00:33]} cxd4 {[%emt 0:00:00]} 12. cxd4 {[%emt 0:00:23]} f6 {[%emt 0:00:00]} 13. Rd1 {[%emt 0:03:57]} Qc8 {[%emt 0:00:00]} 14. d5 {[%emt 0:07:59]} Bd7 {[%emt 0:00:00]} 15. Qb6 {[%emt 0:00:10]} O-O {[%emt 0:00:00]} 16. Rc1 {[%emt 0:00:33]} Qe8 {[%emt 0:00:00]} 17. Qxb7 {[%emt 0:12:06]} Rb8 {[%emt 0:00:00]} 18. Qxa6 {[%emt 0:00:35]} Bb5 {[%emt 0:00:00]} 19. Qa5 {[%emt 0:00:58]} Nf4 {[%emt 0:00:00]} 20. a4 {[%emt 0:08:22]} Ne2+ {[%emt 0:00:00]} 21. Kh1 {[%emt 0:00:06]} Nxc1 {[%emt 0:00:00]} 22. Bxc1 {[%emt 0:00:02]} Bd3 {[%emt 0:00:00]} 23. Nbd2 {[%emt 0:00:37]} Qc8 {[%emt 0:00:00]} 24. Bb2 {[%emt 0:04:17]} Qc2 {[%emt 0:00:00]} 25. Bc3 {[%emt 0:03:16]} Bd8 {[%emt 0:00:00]} 26. Qa7 {[%emt 0:08:13]} Qxc3 {[%emt 0:00:00]} 27. Qxb8 {[%emt 0:00:08]} Qxa1+ {[%emt 0:00:00]} 28. Ng1 {[%emt 0:00:02]} Ba5 {[%emt 0:00:00]} 29. Qxd6 {[%emt 0:00:23]} Bxd2 {[%emt 0:00:00]} 30. Qe6+ {[%emt 0:00:13]} Kh8 {[%emt 0:00:00]} 31. d6 {[%emt 0:01:19]} Bxe4 {[%emt 0:00:00]} 32. d7 {[%emt 0:03:52]} Qf1 {[%emt 0:00:00]} 33. Qg4 {[%emt 0:00:57]} Qxg2+ {[%emt 0:00:00]} 34. Qxg2 {[%emt 0:00:04]} Bxg2+ {[%emt 0:00:00]} 35. Kxg2 {[%emt 0:00:04]} Rd8 {[%emt 0:00:00]} 36. Nf3 {[%emt 0:00:11]} Rxd7 {[%emt 0:00:00]} 37. Nxd2 {[%emt 0:00:08]} Rxd2 {[%emt 0:00:00]} 38. a5 {[%emt 0:00:04]} Rb2 {[%emt 0:00:00]} 39. a6 {[%emt 0:00:07]} Rxb3 {[%emt 0:00:00]} 40. a7 {[%emt 0:00:03]} Ra3 {[%emt 0:00:00]} 0-1

[Event "FIDE World Cup G12-B 2024"]
[Site "Batumi"]
[Date "2024.06.29"]
[Round "7.4"]
[White "Sreekarthika Velmurugan"]
[Black "Amin-Erdene, Tsengel"]
[Result "1-0"]
[ECO "B22"]
[WhiteElo "1838"]
[BlackElo "1491"]
[Annotator "NA RC"]
[PlyCount "69"]
[EventDate "2024.06.23"]
[EventType "swiss"]
[EventCountry "GEO"]
[SourceTitle "playchess.com"]
[Source "ChessBase"]
[SourceQuality "1"]
[TimeControl "5400+30"]

1. e4 {[%emt 0:04:08]} c5 {[%emt 0:00:22]} 2. Nf3 {[%emt 0:00:04]} e6 {[%emt 0:00:27]} 3. c3 {[%emt 0:00:05]} Nf6 {[%emt 0:00:52]} 4. e5 {[%emt 0:00:03]} Nd5 {[%emt 0:00:39]} 5. d4 {[%emt 0:00:06]} cxd4 {[%emt 0:01:06]} 6. cxd4 {[%emt 0:00:03]} d6 {[%emt 0:00:58]} 7. Bc4 {[%emt 0:01:37]} Be7 {[%emt 0:01:31]} 8. O-O {[%emt 0:00:11]} O-O {[%emt 0:00:38]} 9. Nbd2 {[%emt 0:02:15]} Nc6 {[%emt 0:02:45]} 10. Ne4 {[%emt 0:02:27]} dxe5 {[%emt 0:02:11]} 11. dxe5 {[%emt 0:00:07]} b6 {[%emt 0:02:11]} 12. Qe2 {[%emt 0:00:28]} Qc7 {[%emt 0:01:21]} 13. Bxd5 {[%emt 0:07:08]} exd5 {[%emt 0:02:20]} 14. Nc3 {[%emt 0:00:17]} Be6 {[%emt 0:03:19]} 15. Bf4 {[%emt 0:02:54]} a6 {[%emt 0:02:31]} 16. Rfd1 {[%emt 0:01:47]} Rfd8 {[%emt 0:01:40]} 17. Rac1 {[%emt 0:00:59]} Qb7 {[%emt 0:02:19]} 18. Bg5 {[%emt 0:04:23]} Bxg5 {[%emt 0:05:05]} 19. Nxg5 {[%emt 0:00:09]} h6 {[%emt 0:03:28]} 20. Nxe6 {[%emt 0:00:36]} fxe6 {[%emt 0:00:14]} 21. Qg4 {[%emt 0:00:57]} Qf7 {[%emt 0:04:01]} 22. f4 {[%emt 0:23:36]} Na5 {[%emt 0:09:07]} 23. Qf3 {[%emt 0:05:45]} Rac8 {[%emt 0:06:43]} 24. Qf2 {[%emt 0:02:23]} b5 {[%emt 0:04:31]} 25. Ne2 {[%emt 0:02:25]} Qb7 {[%emt 0:06:05]} 26. Nd4 {[%emt 0:05:58]} Qb6 {[%emt 0:02:08]} 27. b3 {[%emt 0:06:36]} Nb7 {[%emt 0:03:35]} 28. Rxc8 {[%emt 0:03:44]} Rxc8 {[%emt 0:00:57]} 29. f5 {[%emt 0:00:11]} exf5 {[%emt 0:02:07]} 30. Qxf5 {[%emt 0:00:14]} Rd8 {[%emt 0:02:26]} 31. e6 {[%emt 0:00:30]} Qc7 {[%emt 0:02:53]} 32. Rf1 {[%emt 0:00:21]} Nc5 {[%emt 0:02:40]} 33. Qf7+ {[%emt 0:02:13]} Qxf7 {[%emt 0:00:09]} 34. exf7+ {[%emt 0:00:03]} Kf8 {[%emt 0:00:15]} 35. b4 {[%emt 0:00:04]} 1-0

[Event "FIDE World Cup G12-B 2024"]
[Site "Batumi"]
[Date "2024.06.29"]
[Round "7.5"]
[White "Xu, Luna Yuexiu"]
[Black "Vazquez Sanchez, Antia"]
[Result "1-0"]
[ECO "B43"]
[WhiteElo "1761"]
[BlackElo "1607"]
[Annotator "NA RC"]
[PlyCount "77"]
[EventDate "2024.06.23"]
[EventType "swiss"]
[EventCountry "GEO"]
[SourceTitle "playchess.com"]
[Source "ChessBase"]
[SourceQuality "1"]
[TimeControl "5400+30"]

1. e4 {[%emt 0:00:04]} c5 {[%emt 0:00:19]} 2. Nf3 {[%emt 0:00:04]} e6 {[%emt 0:00:12]} 3. d4 {[%emt 0:00:08]} cxd4 {[%emt 0:00:06]} 4. Nxd4 {[%emt 0:00:01]} a6 {[%emt 0:00:12]} 5. Nc3 {[%emt 0:00:09]} Qc7 {[%emt 0:00:46]} 6. Bd3 {[%emt 0:00:39]} Nf6 {[%emt 0:01:37]} 7. O-O {[%emt 0:00:51]} Bc5 {[%emt 0:02:38]} 8. Nb3 {[%emt 0:00:08]} Ba7 {[%emt 0:00:17]} 9. Re1 {[%emt 0:01:32]} d6 {[%emt 0:04:26]} 10. h3 {[%emt 0:01:55]} b5 {[%emt 0:05:32]} 11. a3 {[%emt 0:01:15]} Bb7 {[%emt 0:03:06]} 12. Bf4 {[%emt 0:02:06]} e5 {[%emt 0:10:03]} 13. Bg3 {[%emt 0:03:09]} O-O {[%emt 0:03:51]} 14. Kh1 {[%emt 0:04:52]} Re8 {[%emt 0:05:15]} 15. Qd2 {[%emt 0:06:10]} Nbd7 {[%emt 0:01:52]} 16. a4 {[%emt 0:05:47]} b4 {[%emt 0:06:22]} 17. Na2 {[%emt 0:01:20]} a5 {[%emt 0:03:04]} 18. Rad1 {[%emt 0:04:44]} Nc5 {[%emt 0:06:16]} 19. Nxc5 {[%emt 0:01:05]} dxc5 {[%emt 0:01:21]} 20. b3 {[%emt 0:00:37]} Rad8 {[%emt 0:06:33]} 21. Qe2 {[%emt 0:03:36]} Bb8 {[%emt 0:08:26]} 22. Nc1 {[%emt 0:05:28]} Rd4 {[%emt 0:08:29]} 23. f3 {[%emt 0:03:25]} Nh5 {[%emt 0:01:18]} 24. Bh2 {[%emt 0:00:37]} Nf4 {[%emt 0:01:25]} 25. Bxf4 {[%emt 0:00:52]} exf4 {[%emt 0:00:03]} 26. Qf2 {[%emt 0:01:14]} Red8 {[%emt 0:02:06]} 27. Ne2 {[%emt 0:01:43]} R4d7 {[%emt 0:00:22]} 28. Qh4 {[%emt 0:01:42]} Ba6 {[%emt 0:01:50]} 29. Nc1 {[%emt 0:01:31]} Bxd3 {[%emt 0:02:27]} 30. Rxd3 {[%emt 0:00:35]} Rxd3 {[%emt 0:04:02]} 31. Nxd3 {[%emt 0:00:01]} Re8 {[%emt 0:01:11]} 32. e5 {[%emt 0:01:06]} c4 {[%emt 0:00:55]} 33. Nxf4 {[%emt 0:01:27]} cxb3 {[%emt 0:00:49]} 34. cxb3 {[%emt 0:01:09]} h6 {[%emt 0:01:26]} 35. Nd3 {[%emt 0:02:49]} Qc3 {[%emt 0:01:34]} 36. Qc4 {[%emt 0:01:03]} Rc8 {[%emt 0:01:48]} 37. Qa6 {[%emt 0:03:01]} Rd8 {[%emt 0:02:35]} 38. e6 {[%emt 0:04:07]} Rd6 {[%emt 0:03:57]} 39. Qb5 {[%emt 0:03:06]} 1-0

[Event "FIDE World Cup G12-B 2024"]
[Site "Batumi"]
[Date "2024.06.29"]
[Round "7.6"]
[White "Gao, Lilianna"]
[Black "Shomanova, Adiya"]
[Result "1-0"]
[ECO "D35"]
[WhiteElo "1646"]
[BlackElo "1542"]
[Annotator "NA RC"]
[PlyCount "91"]
[EventDate "2024.06.23"]
[EventType "swiss"]
[EventCountry "GEO"]
[SourceTitle "playchess.com"]
[Source "ChessBase"]
[SourceQuality "1"]
[TimeControl "5400+30"]

1. d4 {[%emt 0:00:20]} d5 {[%emt 0:00:12]} 2. c4 {[%emt 0:00:14]} e6 {[%emt 0:00:17]} 3. Nc3 {[%emt 0:00:07]} Nf6 {[%emt 0:00:14]} 4. cxd5 {[%emt 0:00:24]} exd5 {[%emt 0:00:09]} 5. Bg5 {[%emt 0:00:14]} c6 {[%emt 0:01:15]} 6. e3 {[%emt 0:00:59]} Be7 {[%emt 0:00:45]} 7. Bd3 {[%emt 0:00:48]} h6 {[%emt 0:01:20]} 8. Bh4 {[%emt 0:00:28]} Nbd7 {[%emt 0:00:40]} 9. Nge2 {[%emt 0:00:32]} O-O {[%emt 0:00:41]} 10. O-O {[%emt 0:00:33]} Re8 {[%emt 0:00:49]} 11. f3 {[%emt 0:03:10]} Qc7 {[%emt 0:11:31]} 12. Bg3 {[%emt 0:11:41]} Bd6 {[%emt 0:03:11]} 13. Bxd6 {[%emt 0:02:31]} Qxd6 {[%emt 0:00:20]} 14. e4 {[%emt 0:03:12]} dxe4 {[%emt 0:14:48]} 15. fxe4 {[%emt 0:03:02]} Ng4 {[%emt 0:01:14]} 16. e5 {[%emt 0:11:09]} Qb4 {[%emt 0:00:53]} 17. Qd2 {[%emt 0:02:22]} Ndxe5 {[%emt 0:06:52]} 18. dxe5 {[%emt 0:06:42]} Qc5+ {[%emt 0:00:14]} 19. Kh1 {[%emt 0:01:02]} Nf2+ {[%emt 0:00:29]} 20. Rxf2 {[%emt 0:01:03]} Qxf2 {[%emt 0:00:11]} 21. Ne4 {[%emt 0:05:40]} Qh4 {[%emt 0:02:51]} 22. Nd4 {[%emt 0:05:51]} Be6 {[%emt 0:09:20]} 23. Nd6 {[%emt 0:05:04]} Red8 {[%emt 0:03:55]} 24. Nxe6 {[%emt 0:07:01]} fxe6 {[%emt 0:00:18]} 25. Qc2 {[%emt 0:02:37]} Rf8 {[%emt 0:11:48]} 26. Bc4 {[%emt 0:04:32]} Qf4 {[%emt 0:15:19]} 27. Bxe6+ {[%emt 0:02:07]} Kh8 {[%emt 0:00:08]} 28. Bc4 {[%emt 0:00:58]} b5 {[%emt 0:00:48]} 29. Nf7+ {[%emt 0:02:45]} Rxf7 {[%emt 0:03:35]} 30. Bxf7 {[%emt 0:00:16]} Qxf7 {[%emt 0:01:25]} 31. Qxc6 {[%emt 0:00:28]} Rd8 {[%emt 0:02:51]} 32. e6 {[%emt 0:05:04]} Qe7 {[%emt 0:05:16]} 33. Re1 {[%emt 0:01:07]} Rd6 {[%emt 0:00:59]} 34. Qxd6 {[%emt 0:01:41]} Qxd6 {[%emt 0:01:09]} 35. e7 {[%emt 0:00:16]} Kh7 {[%emt 0:01:02]} 36. e8=Q {[%emt 0:00:22]} Qf6 {[%emt 0:00:37]} 37. Qe4+ {[%emt 0:00:31]} Kh8 {[%emt 0:00:11]} 38. Qf3 {[%emt 0:00:42]} Qd8 {[%emt 0:00:48]} 39. Qf7 {[%emt 0:01:02]} Qg5 {[%emt 0:00:46]} 40. Re8+ {[%emt 0:00:30]} Kh7 {[%emt 0:00:05]} 41. Qg8+ {[%emt 0:00:27]} Kg6 {[%emt 0:00:04]} 42. Re6+ {[%emt 0:00:08]} Kh5 {[%emt 0:00:23]} 43. Qf7+ {[%emt 0:00:21]} Kh4 {[%emt 0:00:15]} 44. Re4+ {[%emt 0:00:08]} Qg4 {[%emt 0:00:21]} 45. g3+ {[%emt 0:00:39]} Kh3 {[%emt 0:00:41]} 46. Qf1# {[%emt 0:00:13]} 1-0

[Event "FIDE World Cup G12-B 2024"]
[Site "Batumi"]
[Date "2024.06.29"]
[Round "7.7"]
[White "Bakhshizada, Asnad"]
[Black "Lu, Yichen"]
[Result "1/2-1/2"]
[ECO "A45"]
[WhiteElo "1748"]
[BlackElo "1561"]
[Annotator "NA RC"]
[PlyCount "154"]
[EventDate "2024.06.23"]
[EventType "swiss"]
[EventCountry "GEO"]
[SourceTitle "playchess.com"]
[Source "ChessBase"]
[SourceQuality "1"]
[TimeControl "5400+30"]

1. d4 {[%emt 0:00:03]} Nf6 {[%emt 0:00:07]} 2. Bg5 {[%emt 0:00:22]} Ne4 {[%emt 0:00:29]} 3. Bf4 {[%emt 0:00:10]} c5 {[%emt 0:02:50]} 4. f3 {[%emt 0:01:14]} Nf6 {[%emt 0:00:12]} 5. e4 {[%emt 0:02:21]} Qb6 {[%emt 0:01:08]} 6. dxc5 {[%emt 0:07:27]} Qxb2 {[%emt 0:02:21]} 7. Nd2 {[%emt 0:00:26]} e5 {[%emt 0:02:27]} 8. Rb1 {[%emt 0:05:36]} Qd4 {[%emt 0:03:27]} 9. Bg3 {[%emt 0:07:15]} Bxc5 {[%emt 0:08:25]} 10. Ne2 {[%emt 0:05:09]} Qd6 {[%emt 0:21:24]} 11. Nc4 {[%emt 0:04:08]} Qe6 {[%emt 0:09:05]} 12. Nxe5 {[%emt 0:04:55]} Nh5 {[%emt 0:02:33]} 13. Nd3 {[%emt 0:00:42]} Bb6 {[%emt 0:01:01]} 14. Nef4 {[%emt 0:01:34]} Nxf4 {[%emt 0:00:23]} 15. Bxf4 {[%emt 0:00:44]} Qxa2 {[%emt 0:01:26]} 16. Bd2 {[%emt 0:04:19]} Nc6 {[%emt 0:00:31]} 17. Nb4 {[%emt 0:03:08]} Nxb4 {[%emt 0:03:43]} 18. Bxb4 {[%emt 0:00:33]} Qe6 {[%emt 0:02:26]} 19. Qd2 {[%emt 0:02:59]} h6 {[%emt 0:03:49]} 20. c4 {[%emt 0:09:47]} f5 {[%emt 0:03:31]} 21. Bd3 {[%emt 0:03:02]} fxe4 {[%emt 0:05:43]} 22. Bxe4 {[%emt 0:01:36]} Qxc4 {[%emt 0:10:17]} 23. Qd6 {[%emt 0:02:54]} Qe6 {[%emt 0:00:40]} 24. Qxe6+ {[%emt 0:00:21]} dxe6 {[%emt 0:00:10]} 25. Bg6+ {[%emt 0:00:30]} Kd8 {[%emt 0:01:56]} 26. Ke2 {[%emt 0:01:33]} Bd7 {[%emt 0:06:12]} 27. Rhd1 {[%emt 0:01:22]} e5 {[%emt 0:04:59]} 28. Rd2 {[%emt 0:00:57]} Kc8 {[%emt 0:01:36]} 29. Bd6 {[%emt 0:01:16]} Bc7 {[%emt 0:00:38]} 30. Rc2 {[%emt 0:04:36]} Bc6 {[%emt 0:00:12]} 31. Be7 {[%emt 0:00:33]} Kd7 {[%emt 0:01:28]} 32. Ba3 {[%emt 0:00:21]} Ke6 {[%emt 0:00:18]} 33. g4 {[%emt 0:00:49]} Kf6 {[%emt 0:00:18]} 34. Bd3 {[%emt 0:01:59]} Rhe8 {[%emt 0:00:26]} 35. Be4 {[%emt 0:00:44]} Bxe4 {[%emt 0:00:11]} 36. fxe4 {[%emt 0:00:05]} Bb6 {[%emt 0:00:12]} 37. h4 {[%emt 0:01:18]} Rac8 {[%emt 0:00:49]} 38. Rf1+ {[%emt 0:00:26]} Kg6 {[%emt 0:00:14]} 39. Rd2 {[%emt 0:02:39]} Red8 {[%emt 0:00:52]} 40. h5+ {[%emt 0:02:38]} Kh7 {[%emt 0:00:12]} 41. Rd5 {[%emt 0:01:23]} Bd4 {[%emt 0:01:36]} 42. Rxd8 {[%emt 0:00:34]} Rxd8 {[%emt 0:00:02]} 43. Rf7 {[%emt 0:00:18]} Kg8 {[%emt 0:00:31]} 44. Rxb7 {[%emt 0:00:14]} Rc8 {[%emt 0:00:45]} 45. Kd2 {[%emt 0:00:56]} Rd8 {[%emt 0:00:35]} 46. Ke2 {[%emt 0:00:14]} a5 {[%emt 0:00:35]} 47. Rb5 {[%emt 0:01:58]} Bc3 {[%emt 0:00:24]} 48. Rb3 {[%emt 0:01:09]} Rc8 {[%emt 0:00:32]} 49. Rb5 {[%emt 0:00:55]} Rd8 {[%emt 0:00:43]} 50. Rb3 {[%emt 0:00:58]} Bd2 {[%emt 0:00:14]} 51. Rb5 {[%emt 0:01:01]} Bc3 {[%emt 0:00:43]} 52. Rb3 {[%emt 0:00:09]} Rc8 {[%emt 0:00:28]} 53. Kd3 {[%emt 0:03:16]} Bd4 {[%emt 0:00:23]} 54. Kd2 {[%emt 0:00:43]} Rc7 {[%emt 0:00:23]} 55. Rb5 {[%emt 0:00:44]} Kh7 {[%emt 0:00:34]} 56. Rb3 {[%emt 0:01:55]} Rf7 {[%emt 0:00:22]} 57. Rg3 {[%emt 0:03:36]} a4 {[%emt 0:00:41]} 58. Ke2 {[%emt 0:02:34]} Rb7 {[%emt 0:00:17]} 59. g5 {[%emt 0:00:35]} hxg5 {[%emt 0:00:33]} 60. Rxg5 {[%emt 0:00:29]} Bb2 {[%emt 0:00:37]} 61. Bxb2 {[%emt 0:00:49]} Rxb2+ {[%emt 0:00:02]} 62. Kd3 {[%emt 0:00:20]} a3 {[%emt 0:01:16]} 63. Rxe5 {[%emt 0:00:08]} a2 {[%emt 0:00:08]} 64. Ra5 {[%emt 0:00:11]} Rb3+ {[%emt 0:00:28]} 65. Kd4 {[%emt 0:00:14]} Rb4+ {[%emt 0:00:28]} 66. Kd3 {[%emt 0:00:34]} Rb3+ {[%emt 0:00:08]} 67. Kd4 {[%emt 0:01:20]} Rb4+ {[%emt 0:01:17]} 68. Kd3 {[%emt 0:00:07]} Kh6 {[%emt 0:00:29]} 69. Rxa2 {[%emt 0:00:29]} Kxh5 {[%emt 0:00:04]} 70. Rh2+ {[%emt 0:00:10]} Kg6 {[%emt 0:00:06]} 71. Rg2+ {[%emt 0:00:05]} Kf6 {[%emt 0:00:06]} 72. Rf2+ {[%emt 0:00:49]} Ke6 {[%emt 0:00:21]} 73. Rg2 {[%emt 0:00:19]} Kf6 {[%emt 0:00:29]} 74. Rf2+ {[%emt 0:00:05]} Ke5 {[%emt 0:00:54]} 75. Rf5+ {[%emt 0:00:12]} Ke6 {[%emt 0:00:14]} 76. Rg5 {[%emt 0:01:00]} Kf6 {[%emt 0:00:07]} 77. Rf5+ {[%emt 0:00:11]} Ke6 {[%emt 0:01:01]} 1/2-1/2